fUST/lending_fUST_20241220
["ID","MTS","AMOUNT","RATE_DAILY","PERIOD"]
[346055608,1734671432481,-214.0101375,0.000211,2]
[346055611,1734671432494,-1046.49844559,0.00021566,2]
[346055613,1734671432503,-204.5187448,0.00021597,2]
[346055615,1734671432513,-251.92282872,0.00021698,2]
[346055617,1734671432522,-153.74682568,0.00021702,2]
[346055619,1734671432531,-533.0,0.0002171,2]
[346055621,1734671432541,-2145.0,0.0002171,2]
[346055623,1734671432551,-2364.0,0.0002171,2]
[346055625,1734671432560,-666.0,0.00021717,2]
[346055627,1734671432569,-3403.47186063,0.00021717,2]
[346055629,1734671432579,-188.093187,0.0002175,2]
[346055631,1734671432588,-153.0,0.00021802,2]
[346055633,1734671432597,-153.0,0.00021802,2]
[346055634,1734671432606,-153.0,0.00021802,2]
[346055635,1734671432615,-153.0,0.00021802,2]
[346055636,1734671432624,-153.0,0.00021802,2]
[346055637,1734671432633,-153.0,0.00021802,2]
[346055638,1734671432643,-153.0,0.00021802,2]
[346055639,1734671432653,-153.0,0.00021802,2]
[346055640,1734671432662,-153.0,0.00021802,2]
[346055641,1734671432671,-153.0,0.00021802,2]
[346055642,1734671432680,-153.0,0.00021802,2]
[346055643,1734671432689,-153.0,0.00021802,2]
[346055644,1734671432698,-153.0,0.00021802,2]
[346055645,1734671432707,-153.0,0.00021802,2]
[346055646,1734671432716,-153.0,0.00021802,2]
[346055647,1734671432725,-153.0,0.00021802,2]
[346055648,1734671432735,-153.0,0.00021802,2]
[346055649,1734671432744,-153.0,0.00021802,2]
[346055650,1734671432753,-153.0,0.00021802,2]
[346055651,1734671432762,-153.0,0.00021802,2]
[346055652,1734671432771,-153.0,0.00021802,2]
[346055653,1734671432781,-153.0,0.00021802,2]
[346055654,1734671432790,-153.0,0.00021802,2]
[346055655,1734671432800,-153.0,0.00021802,2]
[346055656,1734671432809,-153.0,0.00021802,2]
[346055657,1734671432818,-153.0,0.00021802,2]
[346055658,1734671432828,-153.0,0.00021802,2]
[346055659,1734671432837,-153.0,0.00021802,2]
[346055660,1734671432847,-153.0,0.00021802,2]
[346055661,1734671432860,-153.0,0.00021802,2]
[346055662,1734671432869,-153.0,0.00021802,2]
[346055663,1734671432878,-153.0,0.00021802,2]
[346055664,1734671432888,-153.0,0.00021802,2]
[346055665,1734671432899,-153.0,0.00021802,2]
[346055666,1734671432908,-153.0,0.00021802,2]
[346055667,1734671432917,-153.0,0.00021802,2]
[346055668,1734671432926,-153.0,0.00021802,2]
[346055669,1734671432937,-153.0,0.00021802,2]
[346055670,1734671432946,-153.0,0.00021802,2]
[346055671,1734671432957,-153.0,0.00021802,2]
[346055672,1734671432966,-153.0,0.00021802,2]
[346055673,1734671432975,-153.0,0.00021802,2]
[346055674,1734671432984,-153.0,0.00021802,2]
[346055675,1734671432993,-153.0,0.00021802,2]
[346055676,1734671433003,-153.0,0.00021802,2]
[346055677,1734671433012,-153.0,0.00021802,2]
[346055678,1734671433021,-153.0,0.00021802,2]
[346055679,1734671433030,-153.0,0.00021802,2]
[346055680,1734671433039,-153.0,0.00021802,2]
[346055681,1734671433049,-153.0,0.00021802,2]
[346055682,1734671433058,-153.0,0.00021802,2]
[346055683,1734671433067,-153.0,0.00021802,2]
[346055684,1734671433077,-153.0,0.00021802,2]
[346055685,1734671433087,-153.0,0.00021802,2]
[346055686,1734671433097,-153.0,0.00021802,2]
[346055687,1734671433106,-153.0,0.00021802,2]
[346055688,1734671433116,-153.0,0.00021802,2]
[346055689,1734671433126,-153.0,0.00021802,2]
[346055690,1734671433135,-153.0,0.00021802,2]
[346055691,1734671433145,-153.0,0.00021802,2]
[346055692,1734671433158,-153.0,0.00021802,2]
[346055693,1734671433168,-153.0,0.00021802,2]
[346055694,1734671433177,-153.0,0.00021802,2]
[346055695,1734671433187,-153.0,0.00021802,2]
[346055696,1734671433197,-153.0,0.00021802,2]
[346055697,1734671433207,-153.0,0.00021802,2]
[346055698,1734671433217,-153.0,0.00021802,2]
[346055699,1734671433226,-153.0,0.00021802,2]
[346055700,1734671433235,-153.0,0.00021802,2]
[346055701,1734671433244,-153.0,0.00021802,2]
[346055702,1734671433254,-153.0,0.00021802,2]
[346055703,1734671433263,-153.0,0.00021802,2]
[346055704,1734671433273,-153.0,0.00021802,2]
[346055705,1734671433282,-153.0,0.00021802,2]
[346055706,1734671433291,-153.0,0.00021802,2]
[346055707,1734671433300,-153.0,0.00021802,2]
[346055708,1734671433310,-153.0,0.00021802,2]
[346055709,1734671433319,-153.0,0.00021802,2]
[346055710,1734671433328,-153.0,0.00021802,2]
[346055711,1734671433338,-153.0,0.00021802,2]
[346055712,1734671433347,-153.0,0.00021802,2]
[346055713,1734671433356,-153.0,0.00021802,2]
[346055714,1734671433365,-153.0,0.00021802,2]
[346055715,1734671433377,-143.02083311,0.00021802,2]
[346055716,1734671433627,-9.97916689,0.00021802,2]
[346055717,1734671433637,-153.0,0.00021802,2]
[346055718,1734671433646,-153.0,0.00021802,2]
[346055719,1734671433656,-153.0,0.00021802,2]
[346055720,1734671433664,-153.0,0.00021802,2]
[346055721,1734671433673,-153.0,0.00021802,2]
[346055722,1734671433682,-153.0,0.00021802,2]
[346055723,1734671433691,-153.0,0.00021802,2]
[346055724,1734671433700,-153.0,0.00021802,2]
[346055725,1734671433709,-153.0,0.00021802,2]
[346055726,1734671433718,-153.0,0.00021802,2]
[346055727,1734671433727,-153.0,0.00021802,2]
[346055728,1734671433736,-153.0,0.00021802,2]
[346055729,1734671433745,-153.0,0.00021802,2]
[346055730,1734671433754,-153.0,0.00021802,2]
[346055731,1734671433764,-153.0,0.00021802,2]
[346055732,1734671433773,-153.0,0.00021802,2]
[346055733,1734671433793,-151.0,0.00021815,2]
[346055734,1734671433803,-1145.6710843,0.00021816,5]
[346055735,1734671433813,-8232.00973581,0.00021817,2]
[346055736,1734671433826,-1791.10149656,0.00021817,2]
[346055737,1734671433846,-542.55702,0.00021817,2]
[346055784,1734671438429,-1236.73865,0.00021817,2]
[346056321,1734671446412,-466.176,0.0002073,2]
[346056322,1734671446422,-129.27192549,0.00021817,2]
[346056323,1734671502632,100061.38760136,0.00025,120]
[346056336,1734672102381,254.7846,0.00013973,2]
[346056442,1734672632736,-300.0,0.00019547,2]
[346056443,1734672632746,-300.0,0.00019547,2]
[346056444,1734672632756,-4584.52356843,0.00019548,2]
[346056445,1734672632795,-3806.46284758,0.00019548,2]
[346056446,1734672632807,-14818.44484219,0.00019548,2]
[346056447,1734672632816,-171.175589,0.00019567,2]
[346056448,1734672632826,-1918.2714556,0.00019666,2]
[346056449,1734672632835,-194.014444,0.00019757,2]
[346056450,1734672632845,-194.8951656,0.00019841,2]
[346056451,1734672632854,-2634.47002655,0.00020262,2]
[346056452,1734672632863,-254.7846,0.00020447,2]
[346056453,1734672632872,-446.655,0.0002073,2]
[346056454,1734672632881,-9600.0,0.00021,2]
[346056455,1734672632891,-156.37462331,0.0002129,2]
[346056456,1734672632900,-420.0,0.00021294,2]
[346056457,1734672632910,-228.0,0.0002139,5]
[346056458,1734672632919,-188.093187,0.00021394,2]
[346056459,1734672632928,-420.0,0.00021502,2]
[346056460,1734672632938,-156.37462331,0.00021614,2]
[346056461,1734672632947,-1336.93737896,0.000217,2]
[346056462,1734672632958,-1027.06262104,0.000217,2]
[346056463,1734672632968,-150.0,0.000217,2]
[346056464,1734672632977,-533.0,0.000217,2]
[346056465,1734672632986,-2143.0,0.000217,2]
[346056466,1734672632995,-666.0,0.00021717,2]
[346056467,1734672633004,-3063.12467454,0.00021717,2]
[346056468,1734672633014,-300.60335207,0.000218,5]
[346056469,1734672633023,-1317.77658707,0.00021817,2]
[346056470,1734672633038,-1625.1561964,0.00021817,2]
[346056717,1734672640541,-666.0,0.00021717,2]
[346056719,1734672640551,-5245.11353797,0.00021817,2]
[346056721,1734672640559,-2634.85180271,0.00021817,2]
[346056723,1734672640569,-40042.57294891,0.00021817,4]
[346056725,1734672640580,-69612.80809457,0.00021817,4]
[346056844,1734672646551,-2364.0,0.0002169,2]
[346056845,1734672646561,-7830.5491108,0.00021817,4]
[346056848,1734672777938,281.6579765,0.00025,120]
[346056849,1734673063715,259.62001,0.00013973,2]
[346056886,1734673832885,-298.81921604,0.00019504,2]
[346056888,1734673832894,-393.94,0.0002,2]
[346056890,1734673832904,-259.62001,0.00020447,2]
[346056892,1734673832913,-4743.65353924,0.00020672,2]
[346056901,1734673832997,-2267.67880353,0.00020672,2]
[346056948,1734673838857,-1733.10827973,0.00020672,2]
[346056950,1734673838867,-300.0,0.00020724,2]
[346056952,1734673838876,-300.0,0.00020729,2]
[346056954,1734673838885,-444.87,0.0002073,2]
[346056956,1734673838895,-2992.40075806,0.00021403,2]
[346056958,1734673838904,-150.0,0.0002169,2]
[346056960,1734673838913,-533.0,0.0002169,2]
[346056962,1734673838922,-2143.0,0.0002169,2]
[346056964,1734673838931,-1026.19549373,0.0002169,2]
[346056968,1734673838961,-1337.80450627,0.0002169,2]
[346056971,1734673838974,-150.0,0.0002169,2]
[346056973,1734673838983,-150.0,0.0002169,2]
[346056974,1734673838992,-1004.70566299,0.00021693,2]
[346056975,1734673839001,-229.0,0.0002171,6]
[346056976,1734673839010,-666.0,0.00021717,2]
[346056977,1734673839019,-2756.81220714,0.00021717,2]
[346056978,1734673839027,-160.0,0.00021798,3]
[346056979,1734673839036,-153.0,0.00021809,2]
[346056980,1734673839046,-153.0,0.00021809,2]
[346056981,1734673839054,-153.0,0.00021809,2]
[346056982,1734673839063,-153.0,0.00021809,2]
[346056983,1734673839073,-153.0,0.00021809,2]
[346056984,1734673839082,-153.0,0.00021809,2]
[346056985,1734673839091,-153.0,0.00021809,2]
[346056986,1734673839100,-153.0,0.00021809,2]
[346056987,1734673839108,-153.0,0.00021809,2]
[346056988,1734673839117,-153.0,0.00021809,2]
[346056989,1734673839126,-153.0,0.00021809,2]
[346056990,1734673839135,-153.0,0.00021809,2]
[346056992,1734673839144,-153.0,0.00021809,2]
[346056994,1734673839154,-153.0,0.00021809,2]
[346056996,1734673839163,-153.0,0.00021809,2]
[346056998,1734673839172,-153.0,0.00021809,2]
[346057000,1734673839180,-153.0,0.00021809,2]
[346057002,1734673839189,-153.0,0.00021809,2]
[346057004,1734673839198,-153.0,0.00021809,2]
[346057006,1734673839208,-153.0,0.00021809,2]
[346057008,1734673839217,-153.0,0.00021809,2]
[346057010,1734673839226,-153.0,0.00021809,2]
[346057012,1734673839235,-68.74550964,0.00021809,2]
[346057216,1734673840976,-84.25449036,0.00021809,2]
[346057219,1734673840986,-153.0,0.00021809,2]
[346057220,1734673840995,-153.0,0.00021809,2]
[346057221,1734673841004,-153.0,0.00021809,2]
[346057222,1734673841014,-153.0,0.00021809,2]
[346057223,1734673841023,-153.0,0.00021809,2]
[346057224,1734673841032,-153.0,0.00021809,2]
[346057226,1734673841041,-153.0,0.00021809,2]
[346057228,1734673841051,-153.0,0.00021809,2]
[346057230,1734673841060,-153.0,0.00021809,2]
[346057231,1734673841069,-153.0,0.00021809,2]
[346057233,1734673841080,-153.0,0.00021809,2]
[346057234,1734673841089,-153.0,0.00021809,2]
[346057235,1734673841098,-153.0,0.00021809,2]
[346057237,1734673841107,-153.0,0.00021809,2]
[346057239,1734673841116,-153.0,0.00021809,2]
[346057241,1734673841125,-153.0,0.00021809,2]
[346057242,1734673841135,-153.0,0.00021809,2]
[346057243,1734673841144,-153.0,0.00021809,2]
[346057244,1734673841152,-153.0,0.00021809,2]
[346057245,1734673841162,-153.0,0.00021809,2]
[346057246,1734673841171,-153.0,0.00021809,2]
[346057247,1734673841181,-153.0,0.00021809,2]
[346057248,1734673841191,-153.0,0.00021809,2]
[346057249,1734673841200,-153.0,0.00021809,2]
[346057250,1734673841211,-153.0,0.00021809,2]
[346057251,1734673841220,-153.0,0.00021809,2]
[346057252,1734673841229,-153.0,0.00021809,2]
[346057253,1734673841238,-153.0,0.00021809,2]
[346057254,1734673841247,-153.0,0.00021809,2]
[346057255,1734673841258,-153.0,0.00021809,2]
[346057256,1734673841267,-153.0,0.00021809,2]
[346057257,1734673841278,-153.0,0.00021809,2]
[346057258,1734673841289,-153.0,0.00021809,2]
[346057259,1734673841299,-153.0,0.00021809,2]
[346057260,1734673841308,-153.0,0.00021809,2]
[346057261,1734673841318,-153.0,0.00021809,2]
[346057262,1734673841328,-153.0,0.00021809,2]
[346057263,1734673841337,-1317.42590136,0.00021817,2]
[346057264,1734673841346,-2189.89014932,0.00021817,2]
[346057265,1734673841365,-1904.1330114,0.00021817,2]
[346057266,1734673841375,-119409.6148386,0.00021817,4]
[346057284,1734673945158,248.302517,0.00013973,2]
[346057285,1734674431260,310.0,0.00025,120]
[346057287,1734674840372,249.60244,0.00013973,2]
[346057290,1734674934361,178.82986625,0.00025,120]
[346057387,1734675038100,-416.33,0.00019291,7]
[346057389,1734675038110,-176.0,0.00020438,2]
[346057390,1734675038120,-177.13,0.00020438,2]
[346057392,1734675038130,-155.0,0.00020438,2]
[346057394,1734675038140,-155.01,0.00020438,2]
[346057396,1734675038149,-177.43,0.00020447,2]
[346057436,1734675040092,-72.17244,0.00020447,2]
[346057437,1734675040102,-171.175589,0.00020491,2]
[346057438,1734675040111,-87.36782448,0.000207,2]
[346057779,1734675045995,-67.63217552,0.000207,2]
[346057781,1734675046006,-432.834,0.0002073,2]
[346057782,1734675046015,-300.0,0.00020841,2]
[346057783,1734675046025,-154.0,0.00020842,2]
[346057784,1734675046035,-154.0,0.00020842,2]
[346057785,1734675046044,-154.0,0.00020842,2]
[346057786,1734675046054,-154.0,0.00020842,2]
[346057787,1734675046063,-51.08997227,0.00020842,2]
[346057788,1734675046081,-102.91002773,0.00020842,2]
[346057789,1734675046091,-154.0,0.00020842,2]
[346057790,1734675046100,-154.0,0.00020842,2]
[346057791,1734675046112,-154.0,0.00020842,2]
[346057792,1734675046122,-154.0,0.00020842,2]
[346057793,1734675046132,-154.0,0.00020842,2]
[346057794,1734675046142,-154.0,0.00020842,2]
[346057795,1734675046152,-154.0,0.00020842,2]
[346057796,1734675046161,-154.0,0.00020842,2]
[346057797,1734675046171,-154.0,0.00020842,2]
[346057798,1734675046182,-154.0,0.00020842,2]
[346057799,1734675046196,-154.0,0.00020842,2]
[346057800,1734675046206,-154.0,0.00020842,2]
[346057801,1734675046215,-154.0,0.00020842,2]
[346057802,1734675046225,-172.8,0.00020842,2]
[346057803,1734675046234,-150.0,0.0002169,2]
[346057804,1734675046243,-917.87648128,0.0002169,2]
[346057807,1734675698302,251.216527,0.00013973,2]
[346057875,1734676232285,-975.26990124,0.0002,2]
[346057876,1734676232295,-413.4402903,0.00020347,2]
[346057877,1734676232305,-251.216527,0.00020447,2]
[346057878,1734676232315,-1611.07409546,0.00020452,2]
[346057879,1734676232327,-3388.57235774,0.00020452,2]
[346057880,1734676232337,-220.2814135,0.00020567,2]
[346057881,1734676232347,-173.046545,0.00020616,2]
[346057882,1734676232360,-161.03396,0.00020723,2]
[346057883,1734676232370,-300.0,0.00020729,2]
[346057884,1734676232380,-300.0,0.00020729,2]
[346057885,1734676232390,-963.22639023,0.0002073,2]
[346057904,1734676238076,-264.82421317,0.0002073,2]
[346057905,1734676238097,-1714.51172524,0.0002073,2]
[346057906,1734676238108,-658.71295068,0.0002073,2]
[346057907,1734676238118,-446.769,0.0002073,2]
[346057908,1734676238127,-161.03396,0.00020758,2]
[346057909,1734676238137,-161.03396,0.00020792,2]
[346057910,1734676238147,-161.03396,0.00020827,2]
[346057911,1734676238157,-1717.00446676,0.000212,30]
[346057912,1734676238169,-797.45686413,0.000212,30]
[346057921,1734676240116,-179.93342737,0.000212,30]
[346057922,1734676240126,-173.0,0.00021516,5]
[346057923,1734676240135,-173.0,0.00021607,5]
[346057924,1734676240145,-144.68220405,0.00021612,2]
[346057925,1734676240199,-6.31779595,0.00021612,2]
[346057926,1734676240208,-151.0,0.00021612,2]
[346057927,1734676240218,-151.0,0.00021612,2]
[346057928,1734676240227,-151.0,0.00021612,2]
[346057929,1734676240237,-151.0,0.00021612,2]
[346057930,1734676240246,-151.0,0.00021612,2]
[346057931,1734676240256,-151.0,0.00021612,2]
[346057932,1734676240266,-151.0,0.00021612,2]
[346057933,1734676240276,-151.0,0.00021612,2]
[346057934,1734676240287,-151.0,0.00021612,2]
[346057935,1734676240296,-151.0,0.00021612,2]
[346057936,1734676240306,-151.0,0.00021612,2]
[346057937,1734676240315,-151.0,0.00021612,2]
[346057938,1734676240326,-151.0,0.00021612,2]
[346057939,1734676240335,-151.0,0.00021612,2]
[346057940,1734676240344,-151.0,0.00021612,2]
[346057941,1734676240353,-151.0,0.00021612,2]
[346057942,1734676240365,-151.0,0.00021612,2]
[346057943,1734676240374,-151.0,0.00021612,2]
[346057944,1734676240383,-194.02,0.00021612,2]
[346057945,1734676240393,-2769.0,0.00021631,15]
[346057946,1734676240403,-1000.0,0.0002165,2]
[346057947,1734676240412,-2364.0,0.00021667,2]
[346057948,1734676240422,-150.0,0.00021667,2]
[346057949,1734676240431,-349.70707207,0.00021691,2]
[346057950,1734676240440,-173.0,0.00021699,5]
[346057951,1734676240450,-666.0,0.00021717,2]
[346057952,1734676240460,-2481.13098639,0.00021717,2]
[346057953,1734676240469,-172.35620638,0.00021731,2]
[346057954,1734676240479,-395.72436257,0.00021767,2]
[346057955,1734676240488,-173.0,0.00021791,5]
[346057956,1734676240497,-8986.80635586,0.00021799,2]
[346057957,1734676240507,-3000.0,0.000218,2]
[346057958,1734676240517,-187.0,0.000218,2]
[346057959,1734676240526,-153.0,0.00021806,2]
[346057960,1734676240536,-153.0,0.00021806,2]
[346057961,1734676240545,-153.0,0.00021806,2]
[346057962,1734676240555,-153.0,0.00021806,2]
[346057963,1734676240565,-153.0,0.00021806,2]
[346057964,1734676240574,-153.0,0.00021806,2]
[346057965,1734676240583,-153.0,0.00021806,2]
[346057966,1734676240593,-153.0,0.00021806,2]
[346057967,1734676240602,-153.0,0.00021806,2]
[346057968,1734676240613,-153.0,0.00021806,2]
[346057969,1734676240623,-153.0,0.00021806,2]
[346057970,1734676240632,-5159.105852,0.0002181,2]
[346057971,1734676240642,-54537.53776287,0.00021817,4]
[346058026,1734676607565,246.067303,0.00013973,2]
[346058119,1734677432583,-501.0,0.0002,4]
[346058121,1734677432592,-468.18355353,0.0002,4]
[346058125,1734677432729,-31.81644647,0.0002,4]
[346058126,1734677432741,-2243.20684873,0.0002,2]
[346058201,1734677438518,-4237.49584977,0.0002,2]
[346058203,1734677438528,-246.067303,0.00020447,2]
[346058205,1734677438539,-300.0,0.00021499,2]
[346058206,1734677438548,-16938.38192573,0.000215,3]
[346058207,1734677438655,-64553.82255514,0.000215,3]
[346058208,1734677438665,-214.0101375,0.000215,2]
[346058209,1734677438675,-2412.40421542,0.000215,3]
[346058210,1734677438685,-2412.40421542,0.000215,3]
[346058211,1734677438695,-2412.40421542,0.000215,3]
[346058212,1734677438704,-533.0,0.00021602,2]
[346058214,1734677438714,-2143.0,0.00021602,2]
[346058216,1734677438723,-1879.592,0.00021602,2]
[346058218,1734677438733,-209.67,0.0002167,2]
[346058220,1734677438744,-2283.85926252,0.00021717,2]
[346058222,1734677438753,-329.35647534,0.00021717,2]
[346058223,1734677438763,-666.0,0.00021717,2]
[346058224,1734677438773,-2233.01788776,0.00021717,2]
[346058225,1734677438783,-151.0,0.00021766,5]
[346058226,1734677438792,-73695.59131474,0.000218,4]
[346058274,1734677446377,-428.152,0.0002073,2]
[346058275,1734677446386,-192274.03868526,0.000218,4]
[346058276,1734677446395,-153.0,0.00021804,2]
[346058277,1734677446405,-153.0,0.00021804,2]
[346058278,1734677446414,-153.0,0.00021804,2]
[346058279,1734677446423,-153.0,0.00021804,2]
[346058280,1734677446432,-49240.33831737,0.00021817,4]
[346058282,1734677551262,245.600774,0.00013973,2]
[346058357,1734678620310,245.011875,0.00013973,2]
[346058371,1734678632659,-245.011875,0.00020447,2]
[346058372,1734678632668,-410.293,0.0002073,2]
[346058373,1734678632681,-887.0,0.00021,2]
[346058374,1734678632691,-300.0,0.00021601,2]
[346058375,1734678632701,-300.0,0.00021601,2]
[346058376,1734678632710,-533.0,0.00021602,2]
[346058377,1734678632720,-2143.0,0.00021602,2]
[346058378,1734678632730,-666.0,0.00021717,2]
[346058379,1734678632740,-1316.57427305,0.00021717,2]
[346058463,1734678643571,-446.221,0.00020818,2]
[346058464,1734678643581,-250.0,0.00021804,2]
[346058465,1734678643591,-3103.779,0.00021817,2]
[346058472,1734678646643,-153.0,0.00021713,2]
[346058473,1734678646654,-153.0,0.00021713,2]
[346058474,1734678646663,-153.0,0.00021713,2]
[346058475,1734678646673,-153.0,0.00021713,2]
[346058476,1734678646685,-153.0,0.00021713,2]
[346058477,1734678646696,-153.0,0.00021713,2]
[346058478,1734678646705,-3361.97944736,0.00021817,2]
[346058479,1734678646715,-1013.87689032,0.00021817,2]
[346058480,1734678646726,-664198.79831831,0.00021817,4]
[346058481,1734678646738,-21999.70332,0.00021817,4]
[346058482,1734678646808,-153.0,0.00021713,2]
[346058483,1734678646819,-6567.70821872,0.00021817,4]
[346058484,1734678646831,-8314.81753704,0.00021817,4]
[346058486,1734678702491,2000.0,0.00025,120]
[346058487,1734679285531,430.482,0.00025,120]
[346058511,1734679524397,232.445318,0.00013973,2]
[346058521,1734679725948,-5000.0,0.00019211,2]
[346058522,1734679729804,-5000.0,0.00019405,2]
[346058523,1734679749540,-5000.0,0.00019595,2]
[346058525,1734679805288,-1185.1878957,0.00019381,2]
[346058546,1734679832915,-2086.78852073,0.00019595,2]
[346058582,1734679843965,-2913.21147927,0.00019595,2]
[346058583,1734679843975,-300.0,0.00019792,2]
[346058584,1734679843984,-5000.0,0.00019793,2]
[346058586,1734679843993,-305.99368807,0.000199,2]
[346058588,1734679844003,-1206.28483266,0.00019999,2]
[346058590,1734679844015,-335.77844256,0.00019999,2]
[346058615,1734679846824,-370.6,0.00019999,2]
[346058617,1734679846836,-21126.40986097,0.00019999,2]
[346058618,1734679846846,-147050.87941,0.0002,2]
[346058619,1734679846856,-232.445318,0.00020447,2]
[346058620,1734679846866,-393.249,0.0002073,2]
[346058621,1734679846876,-703.2810353,0.00020941,2]
[346058622,1734679846885,-1509.79149593,0.00021,7]
[346058623,1734679846895,-491.8226511,0.00021078,2]
[346058624,1734679846904,-306.2301086,0.00021078,2]
[346058625,1734679846914,-153.0,0.00021178,2]
[346058626,1734679846923,-815.0183468,0.00021598,2]
[346058627,1734679846933,-1572.343,0.00021602,2]
[346058628,1734679846942,-1337.805,0.00021602,2]
[346058629,1734679846952,-229.0,0.0002171,6]
[346058630,1734679846962,-666.0,0.00021717,2]
[346058632,1734679846971,-9373.26558327,0.00021717,3]
[346058633,1734679846981,-153.0,0.00021722,2]
[346058634,1734679846990,-153.0,0.00021722,2]
[346058635,1734679846999,-153.0,0.00021722,2]
[346058636,1734679847009,-153.0,0.00021722,2]
[346058637,1734679847018,-153.0,0.00021722,2]
[346058638,1734679847027,-153.0,0.00021722,2]
[346058639,1734679847037,-153.0,0.00021722,2]
[346058640,1734679847046,-153.0,0.00021722,2]
[346058641,1734679847055,-153.0,0.00021722,2]
[346058642,1734679847064,-153.0,0.00021722,2]
[346058643,1734679847074,-153.0,0.00021722,2]
[346058644,1734679847083,-153.0,0.00021722,2]
[346058645,1734679847094,-153.0,0.00021723,2]
[346058646,1734679847103,-420.0,0.00021771,2]
[346058647,1734679847112,-1004.70566299,0.00021789,2]
[346058648,1734679847122,-3232.87922368,0.00021817,2]
[346058649,1734679847131,-506.93844517,0.00021817,2]
[346058650,1734679847140,-169170.52756274,0.00021817,4]
[346058673,1734680152213,10000.0,0.00025,120]
[346058674,1734680162730,10000.0,0.00016,90]
[346058675,1734680174264,10000.0,0.00019,60]
[346058676,1734680188724,10000.0,0.00025,120]
[346058677,1734680197122,10000.0,0.00025,120]
[346058678,1734680206939,10000.0,0.00025,120]
[346058727,1734680297244,-3643.72076979,0.00019622,2]
[346058728,1734680297271,-5000.0,0.0001982,2]
[346058729,1734680297299,-169.89834,0.00020426,2]
[346058730,1734680297330,-174.18978042,0.0002073,2]
[346058731,1734680297342,-216.38221958,0.0002073,2]
[346058732,1734680297352,-300.0,0.00020798,2]
[346058733,1734680297361,-947.1484829,0.00020799,2]
[346058734,1734680351599,374.508,0.0002073,2]
[346058735,1734680355775,-1849.49574604,0.00021018,2]
[346058736,1734680355803,-274.22939447,0.0002123,2]
[346058737,1734680355830,-1000.0,0.00021548,2]
[346058738,1734680355857,-407.5091734,0.00021598,2]
[346058739,1734680355883,-1000.0,0.00021636,2]
[346058740,1734680355909,-1000.0,0.00021643,2]
[346058741,1734680355936,-1000.0,0.00021675,2]
[346058742,1734680355965,-153.0,0.00021692,2]
[346058743,1734680355993,-153.0,0.00021692,2]
[346058744,1734680356021,-1000.0,0.00021697,2]
[346058745,1734680356048,-1000.0,0.000217,2]
[346058746,1734680356075,-1000.0,0.000217,2]
[346058747,1734680356103,-666.0,0.00021717,2]
[346058748,1734680356131,-2153.73989242,0.00021717,2]
[346058749,1734680356161,-1000.0,0.0002175,2]
[346058750,1734680356189,-1000.0,0.00021751,2]
[346058751,1734680356219,-1000.0,0.00021758,2]
[346058752,1734680356248,-902.6138828,0.00021771,2]
[346058753,1734680356276,-1000.0,0.00021799,2]
[346058754,1734680356305,-608.41713881,0.00021806,2]
[346058755,1734680356333,-300.0,0.00021816,2]
[346058756,1734680356364,-1616.43961184,0.00021817,2]
[346058757,1734680356392,-253.46922258,0.00021817,2]